Cogmind - Beta 16.1 @@@ ROGUE MODE // 2026.04.16 @ 22:20:39 Player: SunShine214 Result: Destroyed by G-34 Mercenary with Small Laser Performance ------------- Evolutions (0) 0 Regions Visited (1) 200 Robots Destroyed (16) 80 Value Destroyed (259) 259 Prototype IDs (0) 0 Alien Tech Used (0) 0 Bonus (0) 0 TOTAL SCORE: 539 Bonus ------- None Cogmind --------- Core Integrity 0/250 Matter 18/300 Energy 99/100 System Corruption 0% Temperature Cool (6) Movement Core (150) Ox2 Location -10/Materials Parts ------- > --- POWER (1) -------- (None) > --- PROPULSION (2) --- (None) > --- UTILITY (2) ------ Small Storage Unit Improved Terrain Scanner > --- WEAPON (2) ------- Mining Claw > --- INVENTORY (8) ---- Flight Unit Sensor Array Signal Interpreter Hacking Suite Mining Laser Peak State ------------ > --- POWER ------------ Ion Engine > --- PROPULSION ------- Light Treads Light Treads > --- UTILITY ---------- Small Storage Unit Improved Terrain Scanner > --- WEAPON ----------- Assault Rifle Assault Rifle > --- INVENTORY -------- (None) [Rating: 9] Favorites ----------- Power Ion Engine Engine Ion Engine Propulsion Light Treads Treads Light Treads Utility Small Storage Unit Device Improved Terrain Scanner Storage Small Storage Unit Weapon Assault Rifle Ballistic Gun Assault Rifle Special Weapon Mining Laser Slashing Weapon Mining Claw Build | -11 -10 ------- Run | Yrd Mat Slots Evolved . | . . Power . | . . Propulsion . | . . Utility . | . . Weapon . | . . Parts Attached 9 | 7 2 Power 1 | 1 . Engine 1 | 1 . Core . | . . Reactor . | . . Propulsion 2 | 2 . Treads 2 | 2 . Leg . | . . Wheel . | . . Hover . | . . Flight . | . . Utility 2 | 2 . Device 1 | 1 . Storage 1 | 1 . Processor . | . . Hackware . | . . Protection . | . . Artifact . | . . Weapon 4 | 2 2 Energy Gun . | . . Energy Cannon . | . . Ballistic Gun 2 | 2 . Ballistic Cannon . | . . Launcher . | . . Special Weapon 1 | . 1 Impact Weapon . | . . Slashing Weapon 1 | . 1 Piercing Weapon . | . . Special Melee Weapon . | . . Unidentified Prototypes . | . . Parts Lost 4 | . 4 Power 1 | . 1 Propulsion 1 | . 1 Utility . | . . Weapon 2 | . 2 Highest Loss Streak 3 | . 3 To Critical Strikes . | . . Average Backups 3 | . 3 Power . | . . Propulsion . | . . Utility 1 | . 2 Weapon 1 | . 1 Tool/Special . | . . Unused Backups 3 | . 3 Power . | . . Propulsion . | . . Utility 3 | . 3 Weapon . | . . Tool/Special . | . . Average Slot Usage (%) 83 | . 83 Engine 13 | . 13 Treads 23 | . 23 Device 14 | . 14 Storage 14 | . 14 Ballistic Gun 15 | . 15 Slashing Weapon 1 | . 1 Peak Build Rating 9 | 9 9 Average Rating 7 | 5 7 On Entrance 4 | . 9 Avg Prop Armor Cover (%) . | . . Naked Turns . | . . Heaviest Build 15 | 15 15 Greatest Support 40 | 40 40 Greatest Overweight (x) 2 | . 2 Average Overweight (x) . | . . Largest Inventory Capacity 8 | 8 8 Average Capacity 7 | 7 8 Most Carried 5 | 1 5 Average Carried 3 | . 3 Final Capacity 8 | 8 8 Final Carried 5 | 1 5 Class Distribution -------------------- 100% | Mutant Dominant Class ---------------- Mutant | -10/Materials Resources | -11 -10 ----------- Run | Yrd Mat Matter Collected 300 | 223 77 Remotely . | . . Salvage Created 421 | 114 307 Parts 29 | 11 18 Haulers Intercepted . | . . Recyclers Shooed . | . . Parts Field Recycled . | . . Retrieved Matter . | . . Parts Self-Destructed . | . . Prevented . | . . Parts Restored . | . . Kills | -11 -10 ------- Run | Yrd Mat Combat Hostiles Destroyed 11 | . 11 Melee 3 | . 3 Guns 8 | . 8 Classes Destroyed 5 | 2 3 Tunneler 3 | 3 . Recycler 1 | 1 . Operator 1 | . 1 Swarmer 7 | . 7 Grunt 4 | . 4 Best Kill Streak 6 | 4 6 Combat Bots Only 6 | . 6 Max Kills in Single Turn 1 | 1 1 Gunslinging . | . . Exploded . | . . Melee 1 | . 1 Uniques/NPCs Destroyed . | . . Combat | -11 -10 -------- Run | Yrd Mat Hostile Shots Fired 115 | . 115 Missed 21 | . 21 Hits 94 | . 94 Projectile 94 | . 94 Damage Taken 889 | . 889 Core 253 | . 253 Absorbed by Shields . | . . Core Remaining (%) 100 | 100 . Volleys Fired 70 | 6 64 Largest 2 | 2 2 Hottest 120 | 40 120 Shots Fired 103 | 12 91 Gun 99 | 12 87 Cannon . | . . Launcher . | . . Special 4 | . 4 Kinetic 99 | 12 87 Thermal 4 | . 4 Explosive . | . . Electromagnetic . | . . Robot Hit Streak 9 | 9 9 Robot Miss Streak 6 | . 6 Penetration Max . | . . Secondary Targets 4 | . 4 Max Gunslinging Chain 1 | . 1 Shots Hit Robots 70 | 9 61 Core Hits 21 | 4 17 Critical Kills . | . . Critical Parts Destroyed 1 | 1 . Critical Strikes 1 | 1 . Destroy 1 | 1 . Melee Attacks 16 | . 16 Impact . | . . Slashing 16 | . 16 Piercing . | . . Sneak Attacks 1 | . 1 Combat Hostiles . | . . Follow-up Attacks . | . . Damage Inflicted 1039 | 104 935 Guns 752 | 104 648 Cannons . | . . Explosions . | . . Melee 281 | . 281 Ramming 6 | . 6 Kinetic 752 | 104 648 Thermal . | . . Explosive . | . . Electromagnetic . | . . Impact . | . . Slashing 281 | . 281 Piercing . | . . Highest Corruption . | . . Average Corruption . | . . Corruption Purged . | . . Corruption Blocked . | . . Overload Shots . | . . Overflow Damage 31 | . 31 Projectiles . | . . Explosions . | . . Melee 31 | . 31 Knockbacks . | . . Impact . | . . Kinetic . | . . Secondary . | . . Self-Inflicted Damage . | . . Shots . | . . Rammed 2 | . 2 Targets Rammed 2 | . 2 Kicked . | . . Crushed . | . . Highest Temperature 80 | . 80 Average Temperature 32 | . 32 Received Heat Transfer 276 | . 276 Siege Activations . | . . Martial Activations . | . . Shielding Activations . | . . Robots Disrupted . | . . Combat Hostiles . | . . Robots Corrupted . | . . Combat Hostiles . | . . Parts Fried . | . . Impact Corruptions . | . . Robots Melted . | . . Combat Hostiles . | . . Parts Melted . | . . Heat Transferred . | . . Parts Sabotaged . | . . Parts Stolen . | . . Parts Stripped . | . . Power Chain Reactions . | . . Alert | -11 -10 ------- Run | Yrd Mat Maximum Alert Level . | . . Low Security (%) 100 | 100 100 Level 1 . | . . Level 2 . | . . Level 3 . | . . Level 4 . | . . Level 5 . | . . High Security . | . . Max Security . | . . Peak Influence 120 | 15 120 Initial . | . . Average 26 | 3 29 Influence Increases 305 | 20 285 Destroy 0b10 Robot/C 220 | . 220 Destroy 0b10 Robot/NC 25 | 20 5 Destroy Leader 40 | . 40 Successful Hack 5 | . 5 Disable Machine 15 | . 15 Influence Decreases 271 | 20 251 Time Decay 241 | 20 221 Lost Part 30 | . 30 Squads Dispatched 3 | . 3 Investigation 1 | . 1 Extermination . | . . Reinforcement 2 | . 2 Assault . | . . Garrison . | . . Intercept . | . . Searches Triggered . | . . Construction Impeded . | . . Haulers Reinforced . | . . Active Scanning Responses . | . . Cargo Convoy Interrupts . | . . Stealth | -11 -10 --------- Run | Yrd Mat Distress Signals 1 | . 1 Communications Jammed . | . . Distress Signals . | . . Times Spotted 22 | . 22 Peak Tracking Total 3 | . 3 Tactical Retreats . | . . Traps | -11 -10 ------- Run | Yrd Mat Traps Triggered 2 | . 2 Indirectly . | . . Trap Hack Attempts . | . . Triggered . | . . Disarmed . | . . Reprogrammed . | . . Reused . | . . Traps Extracted . | . . Installed . | . . Triggered . | . . Machines | -11 -10 ---------- Run | Yrd Mat Machines Disabled 1 | . 1 Max in Single Turn 1 | . 1 Machines Repaired . | . . Machines Dismantled . | . . Machines Sabotaged . | . . Overloaded Fab Kills . | . . Hacking | -11 -10 --------- Run | Yrd Mat Machines Accessed 3 | . 3 Terminals 3 | . 3 Fabricators . | . . Repair Stations . | . . Recycling Units . | . . Scanalyzers . | . . Garrison Access . | . . Total Hacks 5 | . 5 Successful 2 | . 2 Failed 3 | . 3 Catastrophic 1 | . 1 Database Lockouts . | . . Manual . | . . Terminals 5 | . 5 Fabricators . | . . Repair Stations . | . . Recycling Units . | . . Scanalyzers . | . . Garrison Access . | . . Terminal Hacks 2 | . 2 Hauler Manifests 2 | . 2 Fabricator Hacks . | . . Repair Station Hacks . | . . Recycling Unit Hacks . | . . Scanalyzer . | . . Garrison Access Hacks . | . . Unauthorized Hacks . | . . Terminals . | . . Fabricators . | . . Repair Stations . | . . Recycling Units . | . . Scanalyzers . | . . Garrison Access . | . . Data Cores Recovered . | . . Used . | . . Hacking Detections 1 | . 1 Full Trace Events 1 | . 1 Feedback Events . | . . Feedback Blocked . | . . Robot Schematics Acquired . | . . Robots Built . | . . Authchips . | . . Time . | . . Total Robot Build Rating . | . . Part Schematics Acquired . | . . Parts Built . | . . Authchips . | . . Time . | . . Total Part Build Rating . | . . Part Studies Acquired . | . . Parts Repaired . | . . Time . | . . Parts Recycled . | . . Recycled Matter . | . . Retrieved Matter . | . . Retrieved Components . | . . Parts Scanalyzed . | . . Part Schematics Acquired . | . . Parts Damaged . | . . Bothacking | -11 -10 ------------ Run | Yrd Mat Used RIF Installer . | . . Robots Hacked . | . . Non-combat . | . . Combat . | . . Robot Hacks Applied . | . . Relay Couplers Released . | . . Fabnet Peak Effective % . | . . Robots Rewired . | . . Allies Hacked . | . . Hacks Repelled . | . . Allies | -11 -10 -------- Run | Yrd Mat Total Allies . | . . Largest Group . | . . Highest-Rated Group . | . . Highest-Rated Ally . | . . Total Orders . | . . Ally Attacks . | . . Total Damage . | . . Kills . | . . Allies Corrupted . | . . Allies Melted . | . . Intel | -11 -10 ------- Run | Yrd Mat Active Infowar (turns) 785 | 28 757 Terrain 785 | 28 757 Robot Analysis Total . | . . Derelict Logs Recovered . | . . Drone Launches . | . . Drone Recoveries . | . . Exploration | -11 -10 ------------- Run | Yrd Mat Turns Passed 869 | 112 757 Spaces Moved 328 | 59 269 Core 15 | 10 5 Treads 313 | 49 264 Legs . | . . Wheels . | . . Hover . | . . Flight . | . . Fastest Speed 50 | 50 150 Average Speed 156 | 141 159 Slowest Speed 160 | 160 160 Overloaded Moves . | . . Propulsion Burnouts . | . . Robots Hopped . | . . Potential Cave-ins . | . . Cave-ins Triggered . | . . Exploration Rate (%) 24 | 4 45 Regions Visited 1 Branch Regions . Pre-discovered Areas . | . . Known Exits Taken . | . . Unknown Exits Taken 1 | 1 . Scrap Searched . | . . Spaces Dug . | . . Terrain Destroyed . | . . Melee . | . . Projectile . | . . AOE . | . . Terrain Rammed . | . . Walls Destroyed . | . . Machines Disabled . | . . Actions | -11 -10 --------- Run | Yrd Mat Total 536 | 72 464 Wait 105 | . 105 Move 327 | 58 269 Hop . | . . Pick Up 5 | 1 4 Fast Attach 8 | 7 1 Attach 1 | . 1 Detach . | . . Swap 2 | . 2 Drop . | . . Fire 70 | 6 64 Melee 16 | . 16 Ram . | . . Kick . | . . Crush 2 | . 2 Escape Stasis . | . . Rewire . | . . Trap . | . . Miscellaneous . | . . Route ------- -11/Scrapyard -10/Materials (discovered 2 exits: [*Mat] / [*Sub]) History --------- Turn | Location | Event 10 | -11/Scrapyard | Discovered new exit (range 14) 113 | -11/Scrapyard | Entered Materials 309 | -10/Materials | Build established: Mutant 550 | -10/Materials | Discovered new exit (range 5) 806 | -10/Materials | Discovered new exit (range 11) 825 | -10/Materials | Core integrity fell below 50% 858 | -10/Materials | Lost 3 parts (1p1n1w) 859 | -10/Materials | Core integrity fell below 20% 870 | -10/Materials | Destroyed by G-34 Mercenary with Small Laser Last Messages --------------- 00834_ K-01 Serf collects debris. 00837_ K-01 Serf cleans the Material Processor. 00839_ R-06 Scavenger collects Flight Unit. 00840_ K-01 Serf cleans the Material Processor. 00841_ S-10 Pest destroyed. 00841_ K-01 Serf collects debris. 00842_ R-06 Scavenger collects Lgt. Ion Engine. 00843_ K-01 Serf cleans the Material Processor. 00844_ Acquired 8 matter. 00844_ Triggered Alarm Trap. 00844_ An alarm sounds. 00844_ ALERT: Alarm triggered, dispatching investigation squad. 00846_ K-01 Serf collects debris. 00846_ K-01 Serf cleans the Material Processor. 00847_ Sneak attack on R-06 Scavenger. 00847_ Destroyed Tractor Beam. 00851_ K-01 Serf cleans the Material Processor. 00867_ U-05 Engineer lays Concrete. Map ----- +----------------------------------------------------+ | ??????????????????????????#######+############ | | ????????????????????????????#??# % | | ???????????????????????????????# | | ????????????????????????????#??# % % | | ?????????????????????????? ############# | | ???????????????????????? #??########?##% | | ?????????????????????? #? ##?# | | ???????????????????????######### ## !!! #??# | | ??????????????????????#?????#??# ## !! ! #??# | | ???????????????????????????#???# ## !! #??# | | ????????????? ?????????????????# ## #??# | | ?????????????????#???###?#???### ## """ #### | | ??????????????? ?????| ? ???## ## """ ##?# | | ???????????????????#?? ? ??#?# ## """ ! #??# | | ??????????????????????!! ### ## #### | | ??????????????????????!! """ ## #####+####### | | ?????????? ?? ????????! """ ## #??#^ | | ??????????????????????? """ ?# #### | | ??????????????????????? ??# | | ??????????????????????? ???# ^ """ """ | | ?????????????????????###+###### """ """ | | ???????? ########%% """ """ | | ??????? u | | ??????? ^ | | ??????? """ """ ######T####/#### | | ?????????????""""" """""@ ##???### | | ??????????????"""" """"" g########??????#=== """ | | ???????????????""" """"" #?????#???????#=== """ | | ???????????????"" """ #?????????????#=== """ | | ??????????????? #????#????##??# | | ??????????????? ? #?????????#?#?# "" """ | | ??????????????##????### < #?????#???????# "T """ | | ????????????????#????## #?????#???????# "" """ | | ??????????????????#?########??????#??????# | | ????????????????????##?????#???#?????????######### | | ???????????????????????????#???????#?????????????? | | ?????????????????????????#??#?????#?????#????????? | | ??????????????????????#????????????????#?????????? | | ?????????????????????????????????????????????????? | | ?????????????????????????????????????????????????? | | ?????????????????????????????????????????????????? | | ?????????????????????????????????????????????????? | | ????????????????????????????????????????????#????? | | ?????????????????????????????????????????????????? | | ?????????????????????????????????????????????????? | | ?????????????????????????????????????????????????? | | | | | | | | | +----------------------------------------------------+ Best States ------------- Heat Dissipation 25 Energy Generation 10 Energy Capacity 250 Matter Stores 217 Matter Capacity 300 Sight Range 16 Terrain Scan Range 16 Terrain Scan Density 10 Evasion (%) 40 Recoil Reduction 2 Item Schematics ----------------- None Robot Schematics ------------------ None Fabricated ------------ Nothing Repaired ---------- Nothing Studied --------- None Alien Tech Used ----------------- None Achievements -------------- None Challenges ------------ None Game ------ Seed ProtonCarbideClaw Manual? 0 Play Time 00:08:12 Cumulative 138.4 hours Start 2026.04.16 @ 22:16:19 End 2026.04.16 @ 22:20:39 Sessions 1 Manual Loads 0 Difficulty Rogue Special Mode None Game No. 213 Rogue 213 Adventurer 0 Explorer 0 Win Type - Total 1 Types 1/0/0/0/0/0/0/0/0/0 Lore% 50 Gallery% 54 Achievement% 41 Wizard Run 0 Options --------- Layout 1 ASCII 0 Keyboard 1 Movement Arrows Keybinds 0 Fullscreen 1 Font 24/Smallcaps Map View 50x35 Zoom Use 0% Tactical HUD 1 Map Filters NONE Filters NONE Steam 1 RUN: 9894177c-8036-4b2b-b82c-e8166327632c